[Event "Titled Tuesday Blitz June 15 2021"]
[White "Jacobson, Aaron"]
[Black "Savitski, Andrei"]
[WhiteFideId "2089912"]
[BlackFideId "13506161"]
[WhiteElo "2260"]
[BlackElo "2121"]
[Result "1/2-1/2"]
[Round "07"]
[TimeControl "180+1"]
[Date "2021.06.15"]
[WhiteClock "0:00:29"]
[BlackClock "0:00:22"]

1. e4 {[%clk 0:02:59]}  c5 {[%clk 0:02:59]} 2. Nf3 {[%clk 0:03:00]}  d6 {[%clk 0:03:00]} 3. d4 {[%clk 0:03:00]}  cxd4 {[%clk 0:03:01]} 4. e5 {[%clk 0:03:01]}  Nc6 {[%clk 0:02:58]} 5. c3 {[%clk 0:03:02]}  dxe5 {[%clk 0:02:58]} 6. Bb5 {[%clk 0:03:02]}  Bd7 {[%clk 0:02:55]} 7. O-O {[%clk 0:03:02]}  Nf6 {[%clk 0:02:36]} 8. Bxc6 {[%clk 0:03:00]}  Bxc6 {[%clk 0:02:35]} 9. Nxe5 {[%clk 0:03:01]}  dxc3 {[%clk 0:02:23]} 10. Qe2 {[%clk 0:03:01]}  Qd5 {[%clk 0:02:11]} 11. Nxc6 {[%clk 0:03:00]}  Qxc6 {[%clk 0:02:11]} 12. Nxc3 {[%clk 0:03:00]}  e6 {[%clk 0:02:12]} 13. Bg5 {[%clk 0:02:47]}  Be7 {[%clk 0:02:07]} 14. Rac1 {[%clk 0:02:46]}  O-O {[%clk 0:01:48]} 15. Rfd1 {[%clk 0:02:40]}  Qa6 {[%clk 0:01:35]} 16. Qxa6 {[%clk 0:02:34]}  bxa6 {[%clk 0:01:36]} 17. Ne4 {[%clk 0:01:54]}  Rac8 {[%clk 0:01:31]} 18. Nxf6+ {[%clk 0:01:51]}  Bxf6 {[%clk 0:01:28]} 19. Bxf6 {[%clk 0:01:51]}  gxf6 {[%clk 0:01:29]} 20. Kf1 {[%clk 0:01:51]}  Rxc1 {[%clk 0:01:19]} 21. Rxc1 {[%clk 0:01:52]}  Rb8 {[%clk 0:01:19]} 22. b3 {[%clk 0:01:52]}  a5 {[%clk 0:00:40]} 23. Rc7 {[%clk 0:01:42]}  a4 {[%clk 0:00:24]} 24. bxa4 {[%clk 0:01:42]}  Rb1+ {[%clk 0:00:24]} 25. Ke2 {[%clk 0:01:43]}  Rb2+ {[%clk 0:00:25]} 26. Ke3 {[%clk 0:01:41]}  Rxa2 {[%clk 0:00:26]} 27. Rxa7 {[%clk 0:01:42]}  Kg7 {[%clk 0:00:26]} 28. g4 {[%clk 0:01:41]}  Kg6 {[%clk 0:00:21]} 29. Kf3 {[%clk 0:01:36]}  Ra3+ {[%clk 0:00:19]} 30. Kg2 {[%clk 0:01:36]}  Ra2 {[%clk 0:00:20]} 31. Kg3 {[%clk 0:01:35]}  Ra3+ {[%clk 0:00:19]} 32. Kg2 {[%clk 0:01:35]}  e5 {[%clk 0:00:20]} 33. h4 {[%clk 0:01:33]}  h5 {[%clk 0:00:17]} 34. gxh5+ {[%clk 0:01:31]}  Kxh5 {[%clk 0:00:17]} 35. Rxf7 {[%clk 0:01:31]}  Rxa4 {[%clk 0:00:18]} 36. Rxf6 {[%clk 0:01:29]}  Kxh4 {[%clk 0:00:18]} 37. Rf5 {[%clk 0:01:24]}  e4 {[%clk 0:00:18]} 38. Kf1 {[%clk 0:00:53]}  Kg4 {[%clk 0:00:13]} 39. Rf8 {[%clk 0:00:53]}  Ra2 {[%clk 0:00:12]} 40. Ke1 {[%clk 0:00:54]}  Kg5 {[%clk 0:00:10]} 41. Kd1 {[%clk 0:00:49]}  Kg4 {[%clk 0:00:09]} 42. Kc1 {[%clk 0:00:49]}  Kg5 {[%clk 0:00:08]} 43. Kb1 {[%clk 0:00:49]}  Re2 {[%clk 0:00:08]} 44. Kc1 {[%clk 0:00:49]}  Ra2 {[%clk 0:00:08]} 45. Kd1 {[%clk 0:00:50]}  Kg4 {[%clk 0:00:08]} 46. Rf7 {[%clk 0:00:48]}  Rb2 {[%clk 0:00:07]} 47. Ke1 {[%clk 0:00:49]}  Ra2 {[%clk 0:00:07]} 48. Kf1 {[%clk 0:00:49]}  Rb2 {[%clk 0:00:08]} 49. Kg1 {[%clk 0:00:48]}  Ra2 {[%clk 0:00:08]} 50. Rf8 {[%clk 0:00:46]}  Ra1+ {[%clk 0:00:08]} 51. Kg2 {[%clk 0:00:46]}  Ra2 {[%clk 0:00:08]} 52. Re8 {[%clk 0:00:45]}  Kf4 {[%clk 0:00:09]} 53. Re7 {[%clk 0:00:46]}  Rb2 {[%clk 0:00:08]} 54. Re6 {[%clk 0:00:46]}  Rc2 {[%clk 0:00:08]} 55. Re8 {[%clk 0:00:46]}  Re2 {[%clk 0:00:08]} 56. Rf8+ {[%clk 0:00:46]}  Kg4 {[%clk 0:00:09]} 57. Rg8+ {[%clk 0:00:42]}  Kf4 {[%clk 0:00:09]} 58. Kf1 {[%clk 0:00:40]}  Ra2 {[%clk 0:00:09]} 59. Rb8 {[%clk 0:00:34]}  Ra1+ {[%clk 0:00:08]} 60. Kg2 {[%clk 0:00:33]}  Ra2 {[%clk 0:00:08]} 61. Rb3 {[%clk 0:00:32]}  Rc2 {[%clk 0:00:08]} 62. Rh3 {[%clk 0:00:31]}  Rd2 {[%clk 0:00:08]} 63. Rh4+ {[%clk 0:00:31]}  Kf5 {[%clk 0:00:08]} 64. Rh8 {[%clk 0:00:25]}  e3 {[%clk 0:00:07]} 65. Rf8+ {[%clk 0:00:24]}  Kg4 {[%clk 0:00:07]} 66. Rg8+ {[%clk 0:00:17]}  Kf5 {[%clk 0:00:07]} 67. Rf8+ {[%clk 0:00:18]}  Ke4 {[%clk 0:00:07]} 68. Re8+ {[%clk 0:00:18]}  Kf4 {[%clk 0:00:07]} 69. Rxe3 {[%clk 0:00:18]}  Rc2 {[%clk 0:00:08]} 70. Ra3 {[%clk 0:00:17]}  Rb2 {[%clk 0:00:08]} 71. Ra4+ {[%clk 0:00:18]}  Kf5 {[%clk 0:00:08]} 72. Kg3 {[%clk 0:00:18]}  Rb3+ {[%clk 0:00:09]} 73. f3 {[%clk 0:00:19]}  Kf6 {[%clk 0:00:07]} 74. Kg4 {[%clk 0:00:17]}  Rb5 {[%clk 0:00:07]} 75. Ra6+ {[%clk 0:00:17]}  Kf7 {[%clk 0:00:07]} 76. f4 {[%clk 0:00:18]}  Rc5 {[%clk 0:00:08]} 77. Rb6 {[%clk 0:00:18]}  Rd5 {[%clk 0:00:08]} 78. Rh6 {[%clk 0:00:18]}  Rc5 {[%clk 0:00:08]} 79. Rd6 {[%clk 0:00:18]}  Rb5 {[%clk 0:00:08]} 80. Kf3 {[%clk 0:00:18]}  Rb3+ {[%clk 0:00:08]} 81. Ke4 {[%clk 0:00:19]}  Rb5 {[%clk 0:00:09]} 82. Rc6 {[%clk 0:00:18]}  Ra5 {[%clk 0:00:09]} 83. Rb6 {[%clk 0:00:18]}  Rc5 {[%clk 0:00:09]} 84. Rd6 {[%clk 0:00:19]}  Ra5 {[%clk 0:00:09]} 85. Ke3 {[%clk 0:00:19]}  Ra3+ {[%clk 0:00:09]} 86. Ke4 {[%clk 0:00:18]}  Ra5 {[%clk 0:00:10]} 87. Rb6 {[%clk 0:00:18]}  Rc5 {[%clk 0:00:10]} 88. Rb1 {[%clk 0:00:13]}  Ra5 {[%clk 0:00:09]} 89. Re1 {[%clk 0:00:12]}  Ra4+ {[%clk 0:00:09]} 90. Kf5 {[%clk 0:00:13]}  Ra5+ {[%clk 0:00:10]} 91. Re5 {[%clk 0:00:13]}  Rxe5+ {[%clk 0:00:09]} 92. Kxe5 {[%clk 0:00:11]}  Ke7 {[%clk 0:00:09]} 93. Kf5 {[%clk 0:00:11]}  Kf7 {[%clk 0:00:10]} 94. Kg5 {[%clk 0:00:10]}  Kg7 {[%clk 0:00:10]} 95. Kg4 {[%clk 0:00:11]}  Kg6 {[%clk 0:00:11]} 96. Kg3 {[%clk 0:00:11]}  Kf5 {[%clk 0:00:11]} 97. Kf3 {[%clk 0:00:12]}  Kf6 {[%clk 0:00:11]} 98. Kf2 {[%clk 0:00:12]}  Kf5 {[%clk 0:00:12]} 99. Ke3 {[%clk 0:00:13]}  Kf6 {[%clk 0:00:12]} 100. Ke4 {[%clk 0:00:14]}  Ke6 {[%clk 0:00:13]} 101. Kd4 {[%clk 0:00:14]}  Kf5 {[%clk 0:00:13]} 102. Ke3 {[%clk 0:00:15]}  Kf6 {[%clk 0:00:14]} 103. Kf2 {[%clk 0:00:15]}  Kf5 {[%clk 0:00:14]} 104. Kg3 {[%clk 0:00:16]}  Kf6 {[%clk 0:00:14]} 105. Kg4 {[%clk 0:00:17]}  Kg6 {[%clk 0:00:14]} 106. f5+ {[%clk 0:00:18]}  Kf6 {[%clk 0:00:15]} 107. Kf4 {[%clk 0:00:19]}  Kf7 {[%clk 0:00:16]} 108. Kf3 {[%clk 0:00:19]}  Kf6 {[%clk 0:00:16]} 109. Kg4 {[%clk 0:00:20]}  Kf7 {[%clk 0:00:17]} 110. Kg5 {[%clk 0:00:21]}  Kg7 {[%clk 0:00:18]} 111. Kh5 {[%clk 0:00:22]}  Kf6 {[%clk 0:00:18]} 112. Kg4 {[%clk 0:00:23]}  Kf7 {[%clk 0:00:17]} 113. Kf4 {[%clk 0:00:23]}  Kf6 {[%clk 0:00:18]} 114. Ke4 {[%clk 0:00:24]}  Kf7 {[%clk 0:00:18]} 115. Ke5 {[%clk 0:00:25]}  Ke7 {[%clk 0:00:19]} 116. f6+ {[%clk 0:00:26]}  Kf7 {[%clk 0:00:19]} 117. Kf5 {[%clk 0:00:27]}  Kf8 {[%clk 0:00:20]} 118. Kg5 {[%clk 0:00:28]}  Kf7 {[%clk 0:00:20]} 119. Kf5 {[%clk 0:00:28]}  Kf8 {[%clk 0:00:21]} 120. Kg6 {[%clk 0:00:29]}  Kg8 {[%clk 0:00:21]} 121. f7+ {[%clk 0:00:28]}  Kf8 {[%clk 0:00:21]} 122. Kh7 {[%clk 0:00:29]}  Kxf7 {[%clk 0:00:22]} 1/2-1/2


[Site "https://www.chess.com"]

[Event "Titled Tuesday Blitz June 15 2021"]
[White "Jacobson, Brandon"]
[Black "Colas, Joshua"]
[WhiteFideId "30901561"]
[BlackFideId "2044447"]
[WhiteElo "2362"]
[BlackElo "2347"]
[Result "1-0"]
[Round "07"]
[TimeControl "180+1"]
[Date "2021.06.15"]
[WhiteClock "0:00:11"]
[BlackClock "0:00:05"]

1. d4 {[%clk 0:03:00]}  d5 {[%clk 0:02:58]} 2. c4 {[%clk 0:03:01]}  e6 {[%clk 0:02:58]} 3. Nf3 {[%clk 0:03:00]}  Nf6 {[%clk 0:02:57]} 4. g3 {[%clk 0:03:01]}  Be7 {[%clk 0:02:50]} 5. Bg2 {[%clk 0:03:02]}  O-O {[%clk 0:02:51]} 6. Nc3 {[%clk 0:03:02]}  dxc4 {[%clk 0:02:49]} 7. Ne5 {[%clk 0:03:02]}  c5 {[%clk 0:02:44]} 8. dxc5 {[%clk 0:03:03]}  Qxd1+ {[%clk 0:02:38]} 9. Nxd1 {[%clk 0:03:04]}  Bxc5 {[%clk 0:02:38]} 10. Nc3 {[%clk 0:03:05]}  Nc6 {[%clk 0:02:26]} 11. Nxc4 {[%clk 0:03:03]}  Bd7 {[%clk 0:02:19]} 12. O-O {[%clk 0:03:02]}  Rfd8 {[%clk 0:02:19]} 13. Bf4 {[%clk 0:03:01]}  Be8 {[%clk 0:02:10]} 14. h3 {[%clk 0:02:41]}  a6 {[%clk 0:02:06]} 15. Rfd1 {[%clk 0:02:35]}  h6 {[%clk 0:01:43]} 16. Nd6 {[%clk 0:02:22]}  Bxd6 {[%clk 0:01:33]} 17. Bxd6 {[%clk 0:02:22]}  Rac8 {[%clk 0:01:15]} 18. Rac1 {[%clk 0:02:13]}  b5 {[%clk 0:01:11]} 19. Ne4 {[%clk 0:02:07]}  Nxe4 {[%clk 0:00:47]} 20. Bxe4 {[%clk 0:02:08]}  Na5 {[%clk 0:00:47]} 21. Rxc8 {[%clk 0:01:45]}  Rxc8 {[%clk 0:00:48]} 22. Bb4 {[%clk 0:01:46]}  Bc6 {[%clk 0:00:33]} 23. Bb1 {[%clk 0:01:24]}  Nb7 {[%clk 0:00:28]} 24. Rc1 {[%clk 0:01:22]}  Bd7 {[%clk 0:00:27]} 25. Rxc8+ {[%clk 0:01:21]}  Bxc8 {[%clk 0:00:27]} 26. f4 {[%clk 0:01:15]}  f5 {[%clk 0:00:22]} 27. a3 {[%clk 0:01:07]}  Nd8 {[%clk 0:00:22]} 28. Kf2 {[%clk 0:01:05]}  Nc6 {[%clk 0:00:22]} 29. Bc3 {[%clk 0:01:05]}  Kf7 {[%clk 0:00:20]} 30. e4 {[%clk 0:01:05]}  g6 {[%clk 0:00:21]} 31. Ke3 {[%clk 0:01:04]}  h5 {[%clk 0:00:20]} 32. Ba2 {[%clk 0:00:57]}  Ke7 {[%clk 0:00:20]} 33. Bb3 {[%clk 0:00:55]}  Bd7 {[%clk 0:00:20]} 34. exf5 {[%clk 0:00:45]}  exf5 {[%clk 0:00:21]} 35. Bb4+ {[%clk 0:00:46]}  Kf6 {[%clk 0:00:20]} 36. Bd5 {[%clk 0:00:36]}  Be8 {[%clk 0:00:18]} 37. Bc5 {[%clk 0:00:33]}  Bd7 {[%clk 0:00:19]} 38. Kd2 {[%clk 0:00:29]}  Be8 {[%clk 0:00:13]} 39. Kc3 {[%clk 0:00:29]}  a5 {[%clk 0:00:13]} 40. Bb6 {[%clk 0:00:26]}  a4 {[%clk 0:00:13]} 41. Bf3 {[%clk 0:00:24]}  Ke6 {[%clk 0:00:12]} 42. Be2 {[%clk 0:00:23]}  Ne7 {[%clk 0:00:12]} 43. Kb4 {[%clk 0:00:08]}  Nd5+ {[%clk 0:00:10]} 44. Ka5 {[%clk 0:00:09]}  Nf6 {[%clk 0:00:10]} 45. Bf2 {[%clk 0:00:08]}  Ne4 {[%clk 0:00:10]} 46. Be1 {[%clk 0:00:08]}  Nd6 {[%clk 0:00:11]} 47. Kb4 {[%clk 0:00:08]}  Kd5 {[%clk 0:00:11]} 48. h4 {[%clk 0:00:07]}  Nc4 {[%clk 0:00:09]} 49. Bc3 {[%clk 0:00:07]}  Bd7 {[%clk 0:00:09]} 50. Bf3+ {[%clk 0:00:07]}  Kd6 {[%clk 0:00:10]} 51. Bd4 {[%clk 0:00:07]}  Be8 {[%clk 0:00:08]} 52. Bc5+ {[%clk 0:00:07]}  Ke6 {[%clk 0:00:08]} 53. Kc3 {[%clk 0:00:08]}  Bd7 {[%clk 0:00:06]} 54. Bd4 {[%clk 0:00:08]}  Be8 {[%clk 0:00:07]} 55. Kd3 {[%clk 0:00:09]}  Bd7 {[%clk 0:00:07]} 56. Bc3 {[%clk 0:00:09]}  Be8 {[%clk 0:00:07]} 57. Kd4 {[%clk 0:00:10]}  Kd6 {[%clk 0:00:07]} 58. Bd5 {[%clk 0:00:09]}  Bd7 {[%clk 0:00:06]} 59. Bf7 {[%clk 0:00:09]}  Ke7 {[%clk 0:00:04]} 60. Bxg6 {[%clk 0:00:09]}  Kf6 {[%clk 0:00:04]} 61. Bxh5 {[%clk 0:00:10]}  Nd6 {[%clk 0:00:05]} 62. Kd5+ {[%clk 0:00:10]}  Ke7 {[%clk 0:00:05]} 63. Bb4 {[%clk 0:00:11]} 1-0


[Site "https://www.chess.com"]

[Event "Titled Tuesday Blitz June 15 2021"]
[White "Jia, Haoxiang"]
[Black "Martinez Alcantara, Jose Eduardo"]
[WhiteFideId "8602999"]
[BlackFideId "3805662"]
[WhiteElo "2635"]
[BlackElo "2690"]
[Result "1-0"]
[Round "07"]
[TimeControl "180+1"]
[Date "2021.06.15"]
[WhiteClock "0:00:20"]
[BlackClock "0:00:03"]

1. Nf3 {[%clk 0:02:59]}  c5 {[%clk 0:02:59]} 2. g3 {[%clk 0:02:58]}  Nc6 {[%clk 0:02:59]} 3. Bg2 {[%clk 0:02:59]}  g6 {[%clk 0:02:59]} 4. O-O {[%clk 0:02:59]}  Bg7 {[%clk 0:02:59]} 5. e4 {[%clk 0:02:57]}  d6 {[%clk 0:02:59]} 6. c3 {[%clk 0:02:57]}  e5 {[%clk 0:02:57]} 7. d4 {[%clk 0:02:48]}  exd4 {[%clk 0:02:31]} 8. cxd4 {[%clk 0:02:48]}  Bg4 {[%clk 0:02:30]} 9. d5 {[%clk 0:02:40]}  Bxf3 {[%clk 0:02:27]} 10. Bxf3 {[%clk 0:02:39]}  Nd4 {[%clk 0:02:27]} 11. Bg2 {[%clk 0:02:36]}  Nf6 {[%clk 0:02:15]} 12. Nc3 {[%clk 0:02:34]}  O-O {[%clk 0:02:15]} 13. Be3 {[%clk 0:02:33]}  Nd7 {[%clk 0:02:11]} 14. f4 {[%clk 0:02:30]}  b5 {[%clk 0:02:08]} 15. Qd2 {[%clk 0:02:28]}  Nb6 {[%clk 0:02:02]} 16. b3 {[%clk 0:01:56]}  a5 {[%clk 0:01:47]} 17. Rad1 {[%clk 0:01:51]}  a4 {[%clk 0:01:45]} 18. Bxd4 {[%clk 0:01:45]}  Bxd4+ {[%clk 0:01:41]} 19. Kh1 {[%clk 0:01:45]}  axb3 {[%clk 0:01:35]} 20. axb3 {[%clk 0:01:44]}  b4 {[%clk 0:01:24]} 21. Nb5 {[%clk 0:01:36]}  Bg7 {[%clk 0:01:24]} 22. e5 {[%clk 0:01:33]}  dxe5 {[%clk 0:01:14]} 23. fxe5 {[%clk 0:01:32]}  Bxe5 {[%clk 0:01:06]} 24. d6 {[%clk 0:01:31]}  Ra5 {[%clk 0:00:37]} 25. Qe2 {[%clk 0:01:16]}  Nd7 {[%clk 0:00:25]} 26. Qc4 {[%clk 0:01:03]}  Kg7 {[%clk 0:00:17]} 27. Nc7 {[%clk 0:01:00]}  Nf6 {[%clk 0:00:09]} 28. Nd5 {[%clk 0:00:45]}  Nxd5 {[%clk 0:00:02]} 29. Rxd5 {[%clk 0:00:45]}  Bd4 {[%clk 0:00:03]} 30. d7 {[%clk 0:00:43]}  Ra7 {[%clk 0:00:03]} 31. Rxd4 {[%clk 0:00:42]}  Rxd7 {[%clk 0:00:01]} 32. Rxd7 {[%clk 0:00:39]}  Qxd7 {[%clk 0:00:02]} 33. Qxc5 {[%clk 0:00:40]}  Rb8 {[%clk 0:00:02]} 34. Bd5 {[%clk 0:00:39]}  f5 {[%clk 0:00:01]} 35. Re1 {[%clk 0:00:38]}  Kh6 {[%clk 0:00:01]} 36. Qe3+ {[%clk 0:00:38]}  g5 {[%clk 0:00:01]} 37. Qe5 {[%clk 0:00:36]}  Rf8 {[%clk 0:00:01]} 38. Rc1 {[%clk 0:00:33]}  g4 {[%clk 0:00:01]} 39. Rc6+ {[%clk 0:00:33]}  Kh5 {[%clk 0:00:01]} 40. Rd6 {[%clk 0:00:20]}  Qc7 {[%clk 0:00:01]} 41. Rh6+ {[%clk 0:00:20]}  Kxh6 {[%clk 0:00:02]} 42. Qxc7 {[%clk 0:00:20]}  Rf7 {[%clk 0:00:03]} 43. Qxf7 {[%clk 0:00:20]} 1-0


[Site "https://www.chess.com"]

[Event "Titled Tuesday Blitz June 15 2021"]
[White "Jumabayev, Rinat"]
[Black "Xiong, Jeffery"]
[WhiteFideId "13702661"]
[BlackFideId "2047640"]
[WhiteElo "2535"]
[BlackElo "2724"]
[Result "0-1"]
[Round "07"]
[TimeControl "180+1"]
[Date "2021.06.15"]
[WhiteClock "0:00:02"]
[BlackClock "0:00:32"]

1. d4 {[%clk 0:03:00]}  d5 {[%clk 0:02:55]} 2. c3 {[%clk 0:03:01]}  Nc6 {[%clk 0:02:52]} 3. Bf4 {[%clk 0:03:00]}  f6 {[%clk 0:02:50]} 4. Nf3 {[%clk 0:02:59]}  g5 {[%clk 0:02:50]} 5. Bg3 {[%clk 0:02:58]}  h5 {[%clk 0:02:50]} 6. h4 {[%clk 0:02:44]}  g4 {[%clk 0:02:49]} 7. Nfd2 {[%clk 0:02:44]}  Nh6 {[%clk 0:02:49]} 8. e4 {[%clk 0:02:43]}  dxe4 {[%clk 0:02:47]} 9. Nxe4 {[%clk 0:02:39]}  Nf5 {[%clk 0:02:48]} 10. Bf4 {[%clk 0:02:39]}  e5 {[%clk 0:02:10]} 11. dxe5 {[%clk 0:02:38]}  Qxd1+ {[%clk 0:02:11]} 12. Kxd1 {[%clk 0:02:39]}  fxe5 {[%clk 0:02:12]} 13. Bg5 {[%clk 0:02:38]}  Be6 {[%clk 0:02:12]} 14. Bb5 {[%clk 0:02:23]}  Be7 {[%clk 0:02:09]} 15. Nbd2 {[%clk 0:02:11]}  O-O-O {[%clk 0:02:02]} 16. Bxc6 {[%clk 0:02:08]}  bxc6 {[%clk 0:02:02]} 17. Kc2 {[%clk 0:01:54]}  Rhf8 {[%clk 0:02:02]} 18. Rae1 {[%clk 0:01:51]}  Rde8 {[%clk 0:01:52]} 19. Re2 {[%clk 0:01:38]}  Nd6 {[%clk 0:01:47]} 20. Ng3 {[%clk 0:01:04]}  Bf7 {[%clk 0:01:43]} 21. Rxe5 {[%clk 0:00:57]}  Bxg5 {[%clk 0:01:20]} 22. Rxg5 {[%clk 0:00:54]}  Bd5 {[%clk 0:01:21]} 23. f3 {[%clk 0:00:44]}  gxf3 {[%clk 0:01:21]} 24. gxf3 {[%clk 0:00:45]}  Bxf3 {[%clk 0:01:21]} 25. Nxf3 {[%clk 0:00:36]}  Rxf3 {[%clk 0:01:22]} 26. Rh2 {[%clk 0:00:37]}  Nf7 {[%clk 0:01:17]} 27. Rg7 {[%clk 0:00:34]}  Re5 {[%clk 0:01:11]} 28. Rd2 {[%clk 0:00:28]}  Nd6 {[%clk 0:01:10]} 29. a4 {[%clk 0:00:21]}  a5 {[%clk 0:00:52]} 30. Kb3 {[%clk 0:00:20]}  c5 {[%clk 0:00:50]} 31. Rg2 {[%clk 0:00:15]}  Rf4 {[%clk 0:00:48]} 32. Rh2 {[%clk 0:00:11]}  Kb7 {[%clk 0:00:45]} 33. Rh7 {[%clk 0:00:07]}  Re3 {[%clk 0:00:35]} 34. Nxh5 {[%clk 0:00:06]}  c4+ {[%clk 0:00:32]} 35. Ka2 {[%clk 0:00:05]}  Rf1 {[%clk 0:00:32]} 36. Rg7 {[%clk 0:00:02]}  Ree1 {[%clk 0:00:32]} 0-1


[Site "https://www.chess.com"]

[Event "Titled Tuesday Blitz June 15 2021"]
[White "Kalajzic, Ivan"]
[Black "De Silva, L M S T"]
[WhiteFideId "14506378"]
[BlackFideId "9953698"]
[WhiteElo "2163"]
[BlackElo "1621"]
[Result "0-1"]
[Round "07"]
[TimeControl "180+1"]
[Date "2021.06.15"]
[WhiteClock "0:00:07"]
[BlackClock "0:01:54"]

1. b3 {[%clk 0:03:00]}  d5 {[%clk 0:02:57]} 2. Bb2 {[%clk 0:03:01]}  Nf6 {[%clk 0:02:58]} 3. e3 {[%clk 0:03:00]}  e6 {[%clk 0:02:58]} 4. Nf3 {[%clk 0:03:00]}  Be7 {[%clk 0:02:59]} 5. d4 {[%clk 0:03:00]}  O-O {[%clk 0:02:59]} 6. Bd3 {[%clk 0:03:00]}  c5 {[%clk 0:03:00]} 7. O-O {[%clk 0:03:00]}  Nc6 {[%clk 0:03:00]} 8. a3 {[%clk 0:03:00]}  Qc7 {[%clk 0:03:00]} 9. Nbd2 {[%clk 0:02:58]}  b6 {[%clk 0:03:01]} 10. dxc5 {[%clk 0:02:56]}  bxc5 {[%clk 0:03:00]} 11. e4 {[%clk 0:02:55]}  Rd8 {[%clk 0:02:57]} 12. exd5 {[%clk 0:02:54]}  exd5 {[%clk 0:02:57]} 13. Re1 {[%clk 0:02:37]}  Bg4 {[%clk 0:02:55]} 14. h3 {[%clk 0:02:35]}  Bh5 {[%clk 0:02:56]} 15. g4 {[%clk 0:02:14]}  Bg6 {[%clk 0:02:54]} 16. Bxg6 {[%clk 0:02:14]}  hxg6 {[%clk 0:02:55]} 17. Ne5 {[%clk 0:02:14]}  Bd6 {[%clk 0:02:52]} 18. Ndf3 {[%clk 0:02:03]}  d4 {[%clk 0:02:50]} 19. Nxc6 {[%clk 0:01:53]}  Qxc6 {[%clk 0:02:51]} 20. Qd3 {[%clk 0:01:50]}  Nd5 {[%clk 0:02:46]} 21. Bc1 {[%clk 0:01:42]}  Re8 {[%clk 0:02:45]} 22. Bd2 {[%clk 0:01:42]}  Bf4 {[%clk 0:02:41]} 23. Rxe8+ {[%clk 0:01:33]}  Rxe8 {[%clk 0:02:40]} 24. Re1 {[%clk 0:01:31]}  Rxe1+ {[%clk 0:02:39]} 25. Nxe1 {[%clk 0:01:26]}  g5 {[%clk 0:02:37]} 26. Bxf4 {[%clk 0:01:01]}  Nxf4 {[%clk 0:02:35]} 27. Qf3 {[%clk 0:00:59]}  Qxf3 {[%clk 0:02:22]} 28. Nxf3 {[%clk 0:01:00]}  Nxh3+ {[%clk 0:02:22]} 29. Kh2 {[%clk 0:01:00]}  Nxf2 {[%clk 0:02:22]} 30. Nxg5 {[%clk 0:00:48]}  Nxg4+ {[%clk 0:02:21]} 31. Kg3 {[%clk 0:00:49]}  Ne3 {[%clk 0:02:22]} 32. Ne4 {[%clk 0:00:42]}  Nxc2 {[%clk 0:02:21]} 33. a4 {[%clk 0:00:39]}  d3 {[%clk 0:02:18]} 34. Kf3 {[%clk 0:00:36]}  Nd4+ {[%clk 0:02:08]} 35. Ke3 {[%clk 0:00:35]}  Nxb3 {[%clk 0:02:07]} 36. Kxd3 {[%clk 0:00:36]}  f5 {[%clk 0:02:05]} 37. Nd6 {[%clk 0:00:35]}  f4 {[%clk 0:02:05]} 38. Ke4 {[%clk 0:00:19]}  g5 {[%clk 0:02:03]} 39. Kf5 {[%clk 0:00:20]}  f3 {[%clk 0:02:01]} 40. Ne4 {[%clk 0:00:17]}  c4 {[%clk 0:01:55]} 41. Kg4 {[%clk 0:00:10]}  c3 {[%clk 0:01:54]} 42. Nxc3 {[%clk 0:00:07]}  f2 {[%clk 0:01:54]} 0-1


[Site "https://www.chess.com"]

[Event "Titled Tuesday Blitz June 15 2021"]
[White "Kanyamarala, Tarun"]
[Black "Yaran, Siar"]
[WhiteFideId "45004714"]
[BlackFideId "6323006"]
[WhiteElo "2086"]
[BlackElo "1977"]
[Result "0-1"]
[Round "07"]
[TimeControl "180+1"]
[Date "2021.06.15"]
[WhiteClock "0:01:19"]
[BlackClock "0:01:52"]

1. d4 {[%clk 0:03:00]}  Nf6 {[%clk 0:02:59]} 2. c4 {[%clk 0:02:53]}  e6 {[%clk 0:02:59]} 3. Nf3 {[%clk 0:02:52]}  d5 {[%clk 0:03:00]} 4. Nc3 {[%clk 0:02:51]}  Be7 {[%clk 0:03:00]} 5. Bg5 {[%clk 0:02:41]}  h6 {[%clk 0:03:00]} 6. Bh4 {[%clk 0:02:40]}  O-O {[%clk 0:03:00]} 7. e3 {[%clk 0:02:40]}  Ne4 {[%clk 0:03:01]} 8. Bxe7 {[%clk 0:02:38]}  Qxe7 {[%clk 0:03:01]} 9. Rc1 {[%clk 0:02:38]}  Nxc3 {[%clk 0:03:01]} 10. Rxc3 {[%clk 0:02:38]}  c6 {[%clk 0:03:01]} 11. Be2 {[%clk 0:02:37]}  Nd7 {[%clk 0:03:01]} 12. O-O {[%clk 0:02:35]}  dxc4 {[%clk 0:03:00]} 13. Bxc4 {[%clk 0:02:33]}  e5 {[%clk 0:03:00]} 14. Qc1 {[%clk 0:02:30]}  exd4 {[%clk 0:02:55]} 15. Nxd4 {[%clk 0:02:29]}  Nf6 {[%clk 0:02:50]} 16. Rd1 {[%clk 0:02:07]}  c5 {[%clk 0:02:20]} 17. Nb5 {[%clk 0:01:51]}  b6 {[%clk 0:02:17]} 18. Nd6 {[%clk 0:01:50]}  Be6 {[%clk 0:02:16]} 19. f3 {[%clk 0:01:46]}  Rfd8 {[%clk 0:02:13]} 20. Rcd3 {[%clk 0:01:46]}  Rd7 {[%clk 0:02:10]} 21. Bxe6 {[%clk 0:01:32]}  Qxe6 {[%clk 0:02:09]} 22. b3 {[%clk 0:01:19]}  Rad8 {[%clk 0:02:07]} 23. Qd2 {[%clk 0:01:19]}  Ne8 {[%clk 0:01:52]} 0-1


[Site "https://www.chess.com"]

[Event "Titled Tuesday Blitz June 15 2021"]
[White "Klimkowski, Jan"]
[Black "Quparadze, Giga"]
[WhiteFideId "21856222"]
[BlackFideId "13602250"]
[WhiteElo "1903"]
[BlackElo "2658"]
[Result "0-1"]
[Round "07"]
[TimeControl "180+1"]
[Date "2021.06.15"]
[WhiteClock "0:01:27"]
[BlackClock "0:02:41"]

1. e4 {[%clk 0:03:00]}  c5 {[%clk 0:03:00]} 2. Nf3 {[%clk 0:03:00]}  e6 {[%clk 0:02:59]} 3. d4 {[%clk 0:03:00]}  cxd4 {[%clk 0:02:59]} 4. Nxd4 {[%clk 0:03:01]}  a6 {[%clk 0:03:00]} 5. Bd3 {[%clk 0:03:00]}  g6 {[%clk 0:02:59]} 6. O-O {[%clk 0:02:58]}  Bg7 {[%clk 0:03:00]} 7. Be3 {[%clk 0:02:58]}  Ne7 {[%clk 0:03:00]} 8. c4 {[%clk 0:02:56]}  d5 {[%clk 0:03:00]} 9. cxd5 {[%clk 0:02:54]}  exd5 {[%clk 0:03:01]} 10. Nc3 {[%clk 0:02:55]}  O-O {[%clk 0:02:59]} 11. Rc1 {[%clk 0:02:38]}  Nbc6 {[%clk 0:02:55]} 12. Nxc6 {[%clk 0:02:37]}  bxc6 {[%clk 0:02:56]} 13. Bc5 {[%clk 0:02:36]}  Be6 {[%clk 0:02:55]} 14. exd5 {[%clk 0:02:28]}  cxd5 {[%clk 0:02:54]} 15. Qd2 {[%clk 0:02:28]}  Re8 {[%clk 0:02:53]} 16. Na4 {[%clk 0:02:26]}  Nc6 {[%clk 0:02:50]} 17. Nb6 {[%clk 0:02:25]}  Rb8 {[%clk 0:02:49]} 18. Na4 {[%clk 0:02:14]}  Ne5 {[%clk 0:02:49]} 19. Bxa6 {[%clk 0:02:06]}  Qh4 {[%clk 0:02:48]} 20. b3 {[%clk 0:01:56]}  Nf3+ {[%clk 0:02:46]} 21. gxf3 {[%clk 0:01:51]}  Be5 {[%clk 0:02:47]} 22. Rfe1 {[%clk 0:01:27]}  Bxh2+ {[%clk 0:02:41]} 0-1


[Site "https://www.chess.com"]